Cogmind - Beta 10.1 @@@ ROGUE MODE // 2020.09.29 @ 19:41:47 Player: derk Result: Destroyed by P-80 Master with Gamma Rifle Performance ------------- Evolutions (7) 3500 Regions Visited (26) 5200 Robots Destroyed (204) 1020 Value Destroyed (8670) 8670 Prototype IDs (231) 4620 Alien Tech Used (8) 1600 Bonus (10699) 10699 TOTAL SCORE: 35309 Bonus ------- High Alert Combat Kills 1229 Follower Combat Kills 2760 Network Hubs Disabled 200 Met Data Miner 300 Used Data Conduit 3000 Met Imprinter 300 Was Imprinted 300 Met Zhirov 300 Met R17 at Cetus 500 Scanned by Researcher 500 Pursued by Intercept 1000 Met Sigix 2000 Friendly Fire -1690 Cogmind --------- Core Integrity 0/1300 Matter 246/300 Energy 340/340 System Corruption 29% Temperature Cool (0) Movement Treading (180) Ox1 Location -3/Quarantine Parts ------- > --- POWER (2) -------- Particle Reactor > --- PROPULSION (4) --- Medium Treads Enhanced Biometal Leg > --- UTILITY (13) ----- Advanced Power Amplifier High-capacity Storage Unit Makeshift Terrain Scan Processor Advanced Salvage Targeting Computer Improved Targeting Computer Experimental Targeting Computer Experimental Targeting Computer > --- WEAPON (2) ------- (None) > --- INVENTORY (12) --- Micro Fission Core Antimatter Reactor Light Particle Reactor Terrabomb EMDS Force Lance Peak State ------------ > --- POWER ------------ Antimatter Reactor Quantum Reactor > --- PROPULSION ------- Advanced Heavy Treads Advanced Heavy Treads > --- UTILITY ---------- Advanced Power Amplifier High-capacity Storage Unit Makeshift Terrain Scan Processor Advanced Salvage Targeting Computer Improved Targeting Computer Experimental Targeting Computer Experimental Targeting Computer Experimental Targeting Computer Particle Accelerator Experimental Phase Shifter Improved Weapon Shielding EM Dispersion Field > --- WEAPON ----------- Core Stripper > --- INVENTORY -------- Micro Fission Core Antimatter Reactor Light Particle Reactor Myomer Leg Myomer Leg Enhanced Biometal Leg EMDS EMDS Coil Gun Force Lance [Rating: 153] Favorites ----------- Power Micro Fission Core Engine Heavy Ion Engine Power Core Micro Fission Core Reactor Zionite Heavy DM Reactor Propulsion Improved Flight Unit Treads Light Treads Leg Zionite Composite Leg I Wheel Compact Wheel Hover Unit Combat Gravmag System Flight Unit Improved Flight Unit Utility Improved Hacking Suite Device Experimental Cooling System Storage High-capacity Storage Unit Processor Experimental Signal Interpreter Hackware Improved Hacking Suite Protection Centrium Medium Armor Plating Artifact Phase Redirector Weapon Makeshift Hammer Energy Gun Medium Laser Energy Cannon Advanced Plasma Cannon Ballistic Gun Improved Assault Rifle Ballistic Cannon Improved Light Cannon Launcher Mini Grenade Launcher Special Weapon Welding Torch Impact Weapon Makeshift Hammer Slashing Weapon Phasing Sabre Piercing Weapon Spear Build | -11 -10 -9 -9 -8 -7 -7 -7 -7 -6 -6 -6 -6 -6 -5 -5 -5 -5 -5 -5 -4 -4 -4 -4 -3 -3 -3 ------- Run | Scr Mat Mat Min Mat Fac Low Low Dat Pro Fac Low Low Zio Pro Fac Ext Cet Arc Hub Fac Upp Upp Zhi Pro Res Qua Slots Evolved 14 | . . 2 . 2 2 . . . . 2 . . . . 2 . . . . 2 . . . . 2 . Power 1 | . . . . . . . . . . 1 . . . . . . . . . . . . . . . . Propulsion 2 | . . . . 1 . . . . . 1 . . . . . . . . . . . . . . . . Utility 11 | . . 2 . 1 2 . . . . . . . . . 2 . . . . 2 . . . . 2 . Weapon . | . . . . . . . . . . . . . . . . . . . . . . . . . . . Parts Attached 435 | 6 12 54 4 16 10 4 2 3 5 45 14 1 4 21 43 38 13 4 6 19 11 7 7 8 4 74 Power 61 | 1 . 5 . 3 2 . 1 . 1 10 4 . . 5 4 2 3 1 . 2 1 . 2 . . 14 Engine 18 | 1 . 5 . 1 . . . . . 5 1 . . 4 1 . . . . . . . . . . . Core 25 | . . . . 2 2 . 1 . 1 5 3 . . 1 3 1 1 1 . . 1 . 2 . . 1 Reactor 18 | . . . . . . . . . . . . . . . . 1 2 . . 2 . . . . . 13 Propulsion 96 | 2 7 18 . 3 . . . . 1 7 2 . . 5 14 11 3 2 1 3 . 1 4 1 . 11 Treads 23 | 2 1 9 . . . . . . . . . . . . . . 1 . . . . 1 . . . 9 Leg 12 | . 2 . . . . . . . . . . . . 1 . 7 . . . . . . . . . 2 Wheel 17 | . 4 9 . . . . . . . . . . . 4 . . . . . . . . . . . . Hover 31 | . . . . . . . . . . 2 1 . . . 14 4 2 2 1 3 . . 1 1 . . Flight 13 | . . . . 3 . . . . 1 5 1 . . . . . . . . . . . 3 . . . Utility 164 | 1 3 13 2 8 6 3 . 2 2 22 4 . 3 6 22 18 4 1 2 5 5 2 1 5 3 21 Device 64 | . . 8 1 3 2 3 . 1 1 9 2 . 2 2 7 2 1 . . 2 2 . 1 1 2 12 Storage 25 | 1 3 3 . 1 . . . . . 3 . . 1 1 5 4 . . . . 2 . . . . 1 Processor 31 | . . 1 . 4 2 . . . . 5 1 . . 2 3 1 . . 1 1 1 1 . 2 1 5 Hackware 10 | . . . . . 1 . . . . 2 . . . . 3 . . 1 . 2 . 1 . . . . Protection 33 | . . 1 1 . 1 . . 1 1 3 1 . . 1 4 11 3 . 1 . . . . 2 . 2 Artifact 1 | . . . . . . . . . . . . . . . . . . . . . . . . . . 1 Weapon 114 | 2 2 18 2 2 2 1 1 1 1 6 4 1 1 5 3 7 3 . 3 9 5 4 . 2 1 28 Energy Gun 25 | 1 . 5 . . . . . . . . . . . 3 1 1 . . . . . . . 2 1 11 Energy Cannon 34 | . 1 2 . 1 2 . . . . . . . . 1 . 3 2 . 2 7 3 4 . . . 6 Ballistic Gun 16 | 1 1 4 . . . . . . . . 2 . . . . . . . . . . . . . . 8 Ballistic Cannon 8 | . . 5 1 . . . . . . . . . . . . . 1 . 1 . . . . . . . Launcher 11 | . . 2 . 1 . . 1 . 1 2 . . . . . . . . . 2 2 . . . . . Special Weapon 1 | . . . 1 . . . . . . . . . . . . . . . . . . . . . . . Impact Weapon 6 | . . . . . . . . . . . 1 1 . . 1 1 . . . . . . . . . 2 Slashing Weapon 7 | . . . . . . . . . . . 1 . 1 1 1 2 . . . . . . . . . 1 Piercing Weapon 6 | . . . . . . 1 . 1 . 4 . . . . . . . . . . . . . . . . Special Melee Weapon . | . . . . . . . . . . . . . . . . . . . . . . . . . . . Unidentified Prototypes 25 | . . 4 . . . . . . . . . . 2 . . 8 . . . 1 . 1 1 1 . 7 Parts Lost 139 | . 3 7 . 1 . . . . 4 16 . . . 18 8 5 1 . 1 7 5 7 . 7 . 49 Power 24 | . . 2 . 1 . . . . 1 4 . . . 4 . . . . . . 1 1 . 2 . 8 Propulsion 42 | . 1 4 . . . . . . 1 7 . . . 6 5 3 . . . 2 1 1 . 1 . 10 Utility 49 | . . . . . . . . . 2 4 . . . 5 3 2 1 . 1 3 2 2 . 4 . 20 Weapon 24 | . 2 1 . . . . . . . 1 . . . 3 . . . . . 2 1 3 . . . 11 Highest Loss Streak 12 | . 2 3 . 1 . . . . 2 6 . . . 12 6 1 1 . 1 3 5 6 . 3 . 11 Average Slot Usage (%) 87 | . 98 99 95 87 92 92 92 88 90 79 90 93 87 77 82 94 92 94 99 91 73 66 59 78 69 68 Engine 3 | . 14 10 7 2 . . . . . 6 1 4 . 3 . . . . . . . . . . . . Core 3 | . . . . 6 7 7 7 7 6 3 6 6 6 4 8 5 5 5 5 5 7 3 2 9 . . Reactor 1 | . . . . . . . . . . . . . . . . 4 5 5 5 5 . . . . . 6 Treads 3 | . 9 10 22 5 . . . . . . . . . . . . 4 4 . . . 1 . . . 7 Leg 1 | . 3 . . . . . . . . . . . . . . 11 . . . . . . . . . . Wheel 2 | . 14 11 . . . . . . . . . . . 6 . . . . . . . . . . . . Hover 5 | . . . . . . . . . . . 5 6 6 . 19 7 12 11 23 20 15 10 7 3 4 . Flight 6 | . . . . 19 23 23 23 23 23 19 19 20 20 9 . . . . . . . . 7 15 14 . Device 8 | . . 9 8 9 14 15 15 11 13 4 12 13 7 1 5 6 12 11 11 14 10 8 5 7 5 14 Storage 11 | . 27 24 33 15 7 7 7 7 7 5 . . 3 1 11 10 6 5 5 5 10 5 5 3 . 3 Processor 14 | . . 8 . 17 26 23 23 23 23 19 19 20 20 24 12 7 5 5 7 10 17 22 21 26 31 25 Hackware 6 | . . . . . 3 7 7 7 7 11 13 13 13 12 7 11 11 11 11 10 5 10 10 6 4 . Protection 3 | . . . 2 . . . . . . 1 . . . 1 3 10 12 17 14 8 . . . 5 4 1 Energy Gun 1 | . 10 1 . . . . . . . . . . . 3 . . . . . . . . . . 2 1 Energy Cannon 2 | . 2 6 . 5 . . . . . . . . . . . 1 5 5 5 6 5 3 . . . . Ballistic Gun 1 | . 14 4 5 . . . . . . . 2 . . . . . . . . . . . . . . 2 Ballistic Cannon 1 | . . 9 5 3 . . . . . . . . . . . . 2 5 5 1 . . . . . . Launcher 1 | . . . 11 3 7 6 2 3 . . . . . . . . . . . . . . . . . . Slashing Weapon 1 | . . . . . . . . . . . 1 6 6 5 3 3 . . . . . . . . . . Naked Turns . | . . . . . . . . . . . . . . . . . . . . . . . . . . . Heaviest Build 114 | 13 57 113 114 113 19 18 18 16 18 27 23 22 17 29 46 65 69 69 69 68 42 42 20 27 9 101 Greatest Support 140 | 40 40 40 40 40 18 18 18 18 18 30 22 22 22 24 89 97 94 80 77 95 58 33 27 27 9 140 Greatest Overweight (x) 7 | . 2 6 2 2 1 . . . . 7 1 . . 3 3 2 . 1 . . 1 1 . . . 3 Average Overweight (x) . | . 1 2 2 . . . . . . . . . . . . . . . . . . . . . . . Largest Inventory Capacity 32 | 6 18 28 28 32 8 8 8 8 8 14 4 4 4 4 8 8 8 8 8 8 28 8 8 8 4 12 Average Capacity 10 | 5 13 20 28 14 8 8 8 8 8 8 4 4 4 4 5 8 8 8 8 8 8 8 8 6 4 11 Most Carried 27 | 6 15 25 26 27 8 8 8 8 7 10 4 4 4 4 7 8 8 8 8 8 8 8 8 8 4 12 Average Carried 9 | 4 9 18 24 13 7 7 7 8 6 7 3 3 3 3 3 7 7 8 7 7 7 5 4 6 3 7 Final Capacity 28 | 6 18 28 28 8 8 8 8 8 8 4 4 4 4 4 8 8 8 8 8 8 8 8 8 4 4 12 Final Carried 25 | 6 15 24 25 8 8 8 8 8 6 4 4 4 4 2 6 8 8 8 8 8 8 3 8 3 4 7 Class Distribution -------------------- 20% | Scavenger-Mutant 20% | Mutant 13% | Hacker-Mutant 11% | Hauler-Mutant 10% | Scout 9% | Commander-Mutant 3% | Hacker-Scout Dominant Class ---------------- Mutant | -10/Materials Mutant | -9/Materials Hauler-Mutant | -9/Mines Sprinter | -8/Materials Scout | -7/Factory Scout | -7/Lower Caves Scout | -7/Lower Caves Scout | -7/Data Miner Scout | -6/Proximity Caves Hacker-Sprinter | -6/Factory Hacker-Scout | -6/Lower Caves Derelict-Scout | -6/Lower Caves Hacker-Scout | -6/Zion Scavenger-Mutant | -5/Proximity Caves Mutant | -5/Factory Commander-Mutant | -5/Extension Commander-Mutant | -5/Cetus Scavenger-Mutant | -5/Archives Scavenger-Mutant | -5/Hub_04(d) Hacker-Mutant | -4/Factory Scavenger-Mutant | -4/Upper Caves Hacker-Mutant | -4/Upper Caves Hacker-Mutant | -4/Zhirov Scavenger-Sprinter | -3/Proximity Caves Derelict-Mutant | -3/Research Scavenger-Mutant | -3/Quarantine Resources | -11 -10 -9 -9 -8 -7 -7 -7 -7 -6 -6 -6 -6 -6 -5 -5 -5 -5 -5 -5 -4 -4 -4 -4 -3 -3 -3 ----------- Run | Scr Mat Mat Min Mat Fac Low Low Dat Pro Fac Low Low Zio Pro Fac Ext Cet Arc Hub Fac Upp Upp Zhi Pro Res Qua Matter Collected 7246 | 278 450 1192 369 167 26 453 70 . 80 383 222 10 36 167 363 576 242 278 21 361 141 50 61 76 6 1168 Remotely . | . . . . . . . . . . . . . . . . . . . . . . . . . . . Salvage Created 9855 | 81 527 1272 219 12 26 . 33 . 14 274 275 . . 533 721 575 221 590 549 1165 431 70 119 . . 2148 Parts 482 | . 22 91 10 2 . . 4 . 2 13 18 . . 15 45 26 11 23 19 48 19 5 6 . . 103 Haulers Intercepted 7 | . 1 3 . . . . . . . 1 . . . . 1 . . . . 1 . . . . . . Recyclers Shooed . | . . . . . . . . . . . . . . . . . . . . . . . . . . . Parts Field Recycled . | . . . . . . . . . . . . . . . . . . . . . . . . . . . Retrieved Matter . | . . . . . . . . . . . . . . . . . . . . . . . . . . . Parts Self-Destructed 47 | . . . . . . . 4 . 8 . 5 . . 16 . . . . . . 9 4 1 . . . Prevented 15 | . . . . . . . . . 2 . . . . 4 . . . . . . 7 2 . . . . Kills | -11 -10 -9 -9 -8 -7 -7 -7 -7 -6 -6 -6 -6 -6 -5 -5 -5 -5 -5 -5 -4 -4 -4 -4 -3 -3 -3 ------- Run | Scr Mat Mat Min Mat Fac Low Low Dat Pro Fac Low Low Zio Pro Fac Ext Cet Arc Hub Fac Upp Upp Zhi Pro Res Qua Combat Hostiles Destroyed 142 | . 9 35 6 . 2 . 3 . 3 5 1 . . 6 6 8 3 3 . 18 7 2 . . . 25 Melee 23 | . . 1 . . . . . . . 2 1 . . 3 6 5 . . . . . . . . . 5 Guns 26 | . 7 7 . . . . . . . . . . . 2 . . . . . . . . . . . 10 Cannons 56 | . 2 22 3 . 1 . . . . . . . . 1 . 3 3 3 . 10 2 2 . . . 4 AOE 31 | . . 5 3 . 1 . 3 . 3 3 . . . . . . . . . 8 5 . . . . . Classes Destroyed 21 | 1 4 3 3 . 1 . . . . . 2 . . 1 1 . 1 . 1 . 1 . . . . 2 Worker 11 | . 1 1 2 . . . . . . . . . . . 2 . . . 2 3 . . . . . . Tunneler 2 | . . . 1 1 . . . . . . . . . . . . . . . . . . . . . . Hauler 7 | . 1 3 . . . . . . . 1 . . . . 1 . . . . 1 . . . . . . Recycler 6 | 1 1 . . . . . . . . . . . . . 1 . . . 1 2 . . . . . . Minesweeper 1 | . . . . . . . . . . . . . . . . . . . . . 1 . . . . . Mechanic 1 | . . . . . . . . . . . . . . . 1 . . . . . . . . . . . Operator 13 | . . 1 . . . . . . . 1 . . . . 1 1 . 9 . . . . . . . . Watcher 4 | . 1 1 . . . . . . . 1 . . . . . . . . . . . . . . . 1 Swarmer 32 | . . 8 . . . . 3 . 3 3 . . . . . . . . . 10 5 . . . . . Grunt 54 | . 9 17 4 . . . . . . . . . . 5 1 2 . . . 6 2 . . . . 8 Brawler 1 | . . . . . . . . . . . . . . 1 . . . . . . . . . . . . Duelist 1 | . . . 1 . . . . . . . . . . . . . . . . . . . . . . . Protector 1 | . . . . . . . . . . . . . . . . . . . . . . . . . . 1 Researcher 3 | . . . . . . . . . . . . . . . . . . . . . . . . . . 3 Sentry 23 | . . 10 . . 1 . . . . . . . . . . 4 . 3 . 2 . . . . . 3 Hunter 5 | . . . . . . . . . . . 1 . . . . . . . . . . . . . . 4 Programmer 15 | . . . . . 1 . . . . 1 . . . . 4 1 . . . . . 2 . . . 6 Cetus Guard 3 | . . . . . . . . . . . . . . . . . 3 . . . . . . . . . Lightning 3 | . . . . . . . . . . . . . . . . . . . . . . . . . . 3 Tracker 2 | . . . . . . . . . . 1 . . . . 1 . . . . . . . . . . . Z-Courier 3 | . . . . . . . . . . . . . . . . . . . 2 1 . . . . . . Z-Heavy 1 | . . . . . . . . . . . . . . . . . 1 . . . . . . . . . Decomposer 3 | . . . . . . . . . . . 3 . . . . . . . . . . . . . . . Samaritan 3 | . . . . . . . . . . . 3 . . . . . . . . . . . . . . . Assembled 1 | . . . 1 . . . . . . . . . . . . . . . . . . . . . . . Thug 1 | . . . . . . . . . . . . . . . . . . 1 . . . . . . . . Butcher 1 | . . . . . . . . . . . . . . . . 1 . . . . . . . . . . Fireman 3 | . . . . . . . . . . . . . . . . . . . 3 . . . . . . . Best Kill Streak 9 | 1 3 5 3 1 2 . 3 . 3 3 1 . . 4 4 2 2 4 3 9 7 2 . . . 4 Combat Bots Only 7 | . 2 5 3 . 2 . 3 . 3 3 1 . . 4 2 2 2 2 . 5 7 2 . . . 4 Max Kills in Single Turn 5 | 1 1 2 1 1 1 . 2 . 2 1 1 . . 1 1 1 1 1 5 5 5 1 . . . 2 Gunslinging . | . . . . . . . . . . . . . . . . . . . . . . . . . . . Exploded 5 | . . 2 1 . 1 . 2 . 2 1 . . . . . . . . . 4 5 . . . . . Melee 1 | . . 1 . . . . . . . 1 1 . . 1 1 1 . . . . . . . . . 1 Uniques/NPCs Destroyed . | . . . . . . . . . . . . . . . . . . . . . . . . . . . Combat | -11 -10 -9 -9 -8 -7 -7 -7 -7 -6 -6 -6 -6 -6 -5 -5 -5 -5 -5 -5 -4 -4 -4 -4 -3 -3 -3 -------- Run | Scr Mat Mat Min Mat Fac Low Low Dat Pro Fac Low Low Zio Pro Fac Ext Cet Arc Hub Fac Upp Upp Zhi Pro Res Qua Damage Taken 22423 | . 711 1569 210 102 410 23 94 50 353 1131 97 38 . 1703 1443 1026 613 282 200 1489 385 1031 77 1001 268 8117 Core 4336 | . 166 213 52 29 173 23 62 . 138 206 . 28 . 520 238 46 63 23 49 129 92 430 60 281 172 1143 Absorbed by Shields 610 | . . . . . 66 . . . . . . . . . 363 24 . . . . 75 82 . . . . Reduced by Siege Mode 90 | . . . . . . . . . . . . . . . . . . . . . . . . . . 90 Core Remaining (%) 48 | 100 33 . 33 94 . . . . 43 . . . . 11 . . . . 58 . . . . 12 . . Volleys Fired 600 | 6 55 111 28 1 15 . 4 . 3 6 . . . 21 4 27 20 52 23 68 17 9 . 1 . 129 Largest 2 | 2 2 2 2 1 1 . 1 . 1 1 . . . 1 1 2 2 2 1 2 1 1 . 1 . 2 Hottest 200 | 70 80 107 56 30 56 . 30 . 30 30 . . . 98 65 150 155 155 98 200 88 110 . 70 . 150 Shots Fired 807 | 12 102 191 31 1 15 . 4 . 3 6 . . . 21 4 35 27 80 23 71 17 9 . 1 . 154 Gun 320 | 12 99 48 7 . . . . . . . . . . 18 4 7 . . . . . . . 1 . 124 Cannon 432 | . 3 134 13 . 4 . . . . . . . . 3 . 28 27 80 23 62 16 9 . . . 30 Launcher 55 | . . 9 11 1 11 . 4 . 3 6 . . . . . . . . . 9 1 . . . . . Special . | . . . . . . . . . . . . . . . . . . . . . . . . . . . Kinetic 315 | 6 55 128 20 . . . . . . . . . . . . . 8 31 . . . . . . . 67 Thermal 325 | 6 47 40 . . . . . . . . . . . 3 . 35 10 49 20 50 . 8 . . . 57 Explosive 55 | . . 9 11 1 11 . 4 . 3 6 . . . . . . . . . 9 1 . . . . . Electromagnetic 112 | . . 14 . . 4 . . . . . . . . 18 4 . 9 . 3 12 16 1 . 1 . 30 Robot Hit Streak 27 | 8 13 25 9 . 5 . 1 . . 2 . . . 5 1 6 10 12 5 15 8 10 . 13 . 27 Robot Miss Streak 4 | 1 4 3 2 . 1 . 2 . . 1 . . . 3 3 2 2 3 2 3 1 . . . . 3 Penetration Max 1 | . . . . . . . . . . . . . . . . . . . . . . . . . . 1 Secondary Targets 2 | . . 1 . . . . . . . . . . . . . . . . . . . . . . . 1 Max Gunslinging Chain 1 | . . 1 . . . . . . . . . . . . . . . . . . . . . . . 1 Capacitor 13 | . . . . . . . . . . . . . . . . . . . . 13 . . . . . . Shots Hit Robots 659 | 10 68 126 17 . 8 . 1 1 . 13 8 2 . 32 39 45 21 53 8 34 14 8 . 1 . 150 Core Hits 360 | 2 24 58 11 2 11 . 6 . 5 15 7 . . 19 17 19 9 23 13 36 15 2 4 . . 62 Critical Hits 54 | . . 4 . . . . . . . . . . . 1 3 2 7 13 . 3 . . . . . 21 Critical Kills 22 | . . 1 . . . . . . . . . . . . 2 1 3 6 . 1 . . . . . 8 Critical Parts Destroyed 30 | . . 3 . . . . . . . . . . . 1 1 1 4 7 . 2 . . . . . 11 Melee Attacks 274 | . . . . . . 1 1 1 7 25 10 4 . 22 90 76 . . . . . . . . . 37 Kinetic 5 | . . . . . . . . . . . . . . . . . . . . . . . . . . 5 Impact 47 | . . . . . . . . . . . . 1 . . 17 29 . . . . . . . . . . Slashing 177 | . . . . . . . . . . . . 3 . 22 73 47 . . . . . . . . . 32 Piercing 45 | . . . . . . 1 1 1 7 25 10 . . . . . . . . . . . . . . . Sneak Attacks 20 | . . . . . . . . 1 . 1 8 . . 2 5 3 . . . . . . . . . . Combat Hostiles 4 | . . . . . . . . . . . 1 . . 2 . 1 . . . . . . . . . . Follow-up Attacks 15 | . . . . . . . . . . . . 1 . . 11 3 . . . . . . . . . . Damage Inflicted 25647 | 135 863 2867 589 102 305 . 216 92 384 838 776 76 . 1447 1857 2015 817 1740 1105 3059 839 412 44 16 . 5053 Guns 4620 | 135 811 643 100 . . . . . . . . . . 181 35 191 . . . . . . . 16 . 2508 Cannons 8999 | . 52 1665 166 . 78 . . . . . . . . 115 . 773 817 1740 308 1205 557 412 . . . 1111 Explosions 5041 | . . 556 323 102 227 . 216 . 384 319 . . . . . . . . 797 1835 282 . . . . . Melee 6824 | . . . . . . . . 92 . 519 776 76 . 1127 1822 1035 . . . . . . . . . 1377 Ramming 163 | . . 3 . . . . . . . . . . . 24 . 16 . . . 19 . . 44 . . 57 Kinetic 4548 | 59 409 1530 266 . . . . . . . . . . . . . 218 531 . . . . . . . 1535 Thermal 6309 | 76 454 618 . . . . . . . . . . . 115 . 964 368 1209 197 808 . 412 . . . 1088 Explosive 4224 | . . 536 323 102 227 . 216 . 384 319 . . . . . . . . . 1835 282 . . . . . Electromagnetic 3694 | . . 180 . . 78 . . . . . . . . 181 35 . 231 . 908 397 557 . . 16 . 1111 Impact 222 | . . . . . . . . . . . . 41 . . 117 64 . . . . . . . . . . Slashing 5100 | . . . . . . . . . . . . 35 . 1127 1705 971 . . . . . . . . . 1262 Piercing 1387 | . . . . . . . . 92 . 519 776 . . . . . . . . . . . . . . . Highest Corruption 29 | . . 5 5 . 1 1 1 1 1 7 7 7 7 1 12 20 21 21 22 . . 1 1 1 . 29 Average Corruption 10 | . . 4 5 . 1 1 1 1 1 3 6 7 7 1 8 19 20 21 21 . . 1 1 1 . 24 Corruption Purged 2 | . . . . . . . . . . 1 1 . . . . . . . . . . . . . . . Effects 412 | . . 36 24 . . 2 1 . 4 6 7 3 . . 28 122 25 52 27 . . . . 1 . 74 Message Errors 73 | . . 9 5 . . 1 1 . 4 1 2 1 . . 5 21 4 6 4 . . . . 1 . 8 Matter Fused 74 | . . 14 3 . . . . . . 2 2 . . . 3 24 7 3 6 . . . . . . 10 Heat Flow Errors 32 | . . 1 5 . . . . . . 2 2 1 . . 2 10 2 2 1 . . . . . . 4 Energy Discharges 30 | . . 5 . . . . . . . . . . . . 2 13 1 4 . . . . . . . 5 Parts Rejected 4 | . . . 1 . . . . . . . . . . . . 1 . 1 . . . . . . . 1 Data Loss (minor) 28 | . . 3 4 . . 1 . . . 1 1 1 . . 7 2 2 4 . . . . . . . 2 Data Loss (major) 11 | . . . 3 . . . . . . . . . . . 2 5 . 1 . . . . . . . . Misfires 6 | . . . 2 . . . . . . . . . . . . 1 1 2 . . . . . . . . Alerts 4 | . . . . . . . . . . . . . . . 1 2 1 . . . . . . . . . Misdirections 39 | . . . . . . . . . . . . . . . 1 21 1 2 6 . . . . . . 8 Targeting Errors 95 | . . 4 1 . . . . . . . . . . . 5 22 4 23 10 . . . . . . 26 Weapon Failures 16 | . . . . . . . . . . . . . . . . . 2 4 . . . . . . . 10 Overload Shots . | . . . . . . . . . . . . . . . . . . . . . . . . . . . Overflow Damage 1084 | . . 8 . 7 . . 10 32 16 17 43 . . 141 115 125 10 69 11 200 38 52 2 . . 188 Projectiles 233 | . . 4 . . . . . . . . . . . . . 9 10 69 . 16 38 52 . . . 35 Explosions 232 | . . 4 . 7 . . 10 . 16 . . . . . . . . . 11 184 . . . . . . Melee 619 | . . . . . . . . 32 . 17 43 . . 141 115 116 . . . . . . 2 . . 153 Knockbacks 22 | . . 11 2 . . . . . . . . . . . 1 1 1 4 . 1 . . 1 . . . Impact 4 | . . . . . . . . . . . . . . . 1 1 . . . 1 . . 1 . . . Kinetic 17 | . . 10 2 . . . . . . . . . . . . . 1 4 . . . . . . . . Secondary 1 | . . 1 . . . . . . . . . . . . . . . . . . . . . . . . Self-Inflicted Damage 367 | . . 47 100 25 . . 48 . . . . . . 8 . 7 . . 99 9 . . 20 . . 4 Shots 8 | . . 2 3 1 . . 1 . . . . . . . . . . . 1 . . . . . . . Rammed 45 | . . . . . . . . . . . . . . 18 . 2 . . . 2 . . 8 . . 15 Targets Rammed 48 | . . 1 . . . . . . . . . . . 19 . 2 . . . 2 . . 8 . . 16 Kicked 1 | . . . . . . . . . . . . . . 1 . . . . . . . . . . . . Crushed 2 | . . 1 . . . . . . . . . . . . . . . . . . . . . . . 1 Highest Temperature 345 | 54 165 257 274 17 60 . . . 6 113 251 218 . 250 202 345 133 149 244 308 96 64 . 6 . 151 Average Temperature 70 | 28 44 32 108 13 22 . . . 4 59 102 117 . 81 68 90 60 40 63 109 22 12 . 6 . 77 Received Heat Transfer 3851 | . 303 537 54 45 74 . . 6 102 30 . . . 528 285 226 81 36 18 291 33 179 . 141 54 828 Effects 2 | . . . . . . . . . . . 1 . . . . . . . . 1 . . . . . . Energy Bleed 2 | . . . . . . . . . . . 1 . . . . . . . . 1 . . . . . . Siege Activations 1 | . . . . . . . . . . . . . . . . . . . . . . . . . . 1 Total Turns 69 | . . . . . . . . . . . . . . . . . . . . . . . . . . 69 Longest Duration 69 | . . . . . . . . . . . . . . . . . . . . . . . . . . 69 Robots Corrupted 7 | . . . . . . . . . . . . . . . . . . . 2 2 . . . . . 3 Combat Hostiles 3 | . . . . . . . . . . . . . . . . . . . . . . . . . . 3 Parts Fried 25 | . . 1 . . . . . . . . . . . . 1 1 . . 5 5 3 . . . . 9 Impact Corruptions 3 | . . . . . . . . . . . . . . . 1 1 . . . . . . 1 . . . Robots Melted . | . . . . . . . . . . . . . . . . . . . . . . . . . . . Combat Hostiles . | . . . . . . . . . . . . . . . . . . . . . . . . . . . Parts Melted 8 | . 1 2 . . . . . . . . . . . . 1 . . 4 . . . . . . . . Heat Transferred 8975 | 222 1295 1160 . . . . . . . . . . . 111 . 1062 500 1700 300 500 . 200 . . . 1925 Parts Sabotaged 3 | . . . . . . . . . . . . . . . . . . . . 3 . . . . . . Parts Stolen . | . . . . . . . . . . . . . . . . . . . . . . . . . . . Parts Stripped . | . . . . . . . . . . . . . . . . . . . . . . . . . . . Power Chain Reactions 1 | . . 1 . . . . . . . . . . . . . . . . . . . . . . . . Missiles Intercepted . | . . . . . . . . . . . . . . . . . . . . . . . . . . . Alert | -11 -10 -9 -9 -8 -7 -7 -7 -7 -6 -6 -6 -6 -6 -5 -5 -5 -5 -5 -5 -4 -4 -4 -4 -3 -3 -3 ------- Run | Scr Mat Mat Min Mat Fac Low Low Dat Pro Fac Low Low Zio Pro Fac Ext Cet Arc Hub Fac Upp Upp Zhi Pro Res Qua Peak Influence 1935 | 5 187 715 370 254 314 . . . . 400 . . . . 216 961 962 566 1097 1935 . . . . 30 247 Initial 536 | . 3 20 278 141 110 . . . . 37 . . . . . 22 490 384 128 536 . . . . . 16 Average 306 | 1 72 314 253 150 184 . . . . 109 . . . . 81 446 728 508 161 1246 . . . . 18 57 Maximum Alert Level 5 | . . 3 1 1 1 . . . . 2 . . . . 1 3 3 2 3 5 . . . . . 1 Low Security (%) 54 | 100 100 44 17 90 68 . . . . 72 . . . . 89 28 . . 94 . . . . . 100 98 Level 1 17 | . . 9 82 9 31 . . . . 26 . . . . 10 32 . 17 4 . . . . . . 1 Level 2 16 | . . 41 . . . . . . . 1 . . . . . 9 47 82 . 41 . . . . . . Level 3 7 | . . 5 . . . . . . . . . . . . . 29 52 . . 1 . . . . . . Level 4 . | . . . . . . . . . . . . . . . . . . . . 8 . . . . . . Level 5 3 | . . . . . . . . . . . . . . . . . . . . 48 . . . . . . High Security . | . . . . . . . . . . . . . . . . . . . . . . . . . . . Max Security . | . . . . . . . . . . . . . . . . . . . . . . . . . . . Squads Dispatched 44 | . 3 2 . 4 2 . . . . 6 . . . 1 5 2 . . 2 9 . . . . 1 7 Investigation 10 | . 1 1 . 1 1 . . . . 3 . . . 1 . . . . . 2 . . . . . . Extermination 8 | . . . . . . . . . . 1 . . . . 2 . . . 1 . . . . . . 4 Reinforcement 17 | . 2 1 . 3 1 . . . . . . . . . 1 1 . . . 4 . . . . 1 3 Assault 4 | . . . . . . . . . . . . . . . . 1 . . 1 2 . . . . . . Garrison 1 | . . . . . . . . . . . . . . . . . . . . 1 . . . . . . Intercept 4 | . . . . . . . . . . 2 . . . . 2 . . . . . . . . . . . Construction Impeded 1 | . . . . . . . . . . . . . . . . . . . . 1 . . . . . . Haulers Reinforced 1 | . . . . . . . . . . . . . . . . . . . . 1 . . . . . . Stealth | -11 -10 -9 -9 -8 -7 -7 -7 -7 -6 -6 -6 -6 -6 -5 -5 -5 -5 -5 -5 -4 -4 -4 -4 -3 -3 -3 --------- Run | Scr Mat Mat Min Mat Fac Low Low Dat Pro Fac Low Low Zio Pro Fac Ext Cet Arc Hub Fac Upp Upp Zhi Pro Res Qua Distress Signals 20 | . . 4 . 2 . . . . . . . . . . 1 2 3 . 1 4 . . . . 1 2 Communications Jammed . | . . . . . . . . . . . . . . . . . . . . . . . . . . . Distress Signals . | . . . . . . . . . . . . . . . . . . . . . . . . . . . Times Spotted 483 | . 21 61 12 15 6 1 5 4 19 21 8 3 . 22 28 41 18 24 2 67 6 15 . 25 6 53 Peak Tracking Total 21 | . 4 7 4 14 2 1 2 4 11 5 3 3 . 5 4 5 7 2 21 10 3 7 . 14 4 11 Tactical Retreats 68 | . . 3 . . . . 1 . 5 5 2 . . 8 7 1 . . 1 14 3 5 . 3 2 8 Traps | -11 -10 -9 -9 -8 -7 -7 -7 -7 -6 -6 -6 -6 -6 -5 -5 -5 -5 -5 -5 -4 -4 -4 -4 -3 -3 -3 ------- Run | Scr Mat Mat Min Mat Fac Low Low Dat Pro Fac Low Low Zio Pro Fac Ext Cet Arc Hub Fac Upp Upp Zhi Pro Res Qua Traps Triggered 15 | . 3 3 . . 1 . . . . 2 . . . . 2 2 . . 2 . . . . . . . Indirectly 1 | . . . . . . . . . . . . . . . . . . . 1 . . . . . . . Trap Hack Attempts . | . . . . . . . . . . . . . . . . . . . . . . . . . . . Triggered . | . . . . . . . . . . . . . . . . . . . . . . . . . . . Disarmed . | . . . . . . . . . . . . . . . . . . . . . . . . . . . Reprogrammed . | . . . . . . . . . . . . . . . . . . . . . . . . . . . Reused 3 | . . . . . . . . . . . . . . . . . . . . 1 . 2 . . . . Traps Extracted . | . . . . . . . . . . . . . . . . . . . . . . . . . . . Installed 10 | . . . . . . . . . . . . . . . . . . . 7 1 . 2 . . . . Triggered 10 | . . . . . . . 2 . 5 . . . . . . . . . . 1 . 2 . . . . Machines | -11 -10 -9 -9 -8 -7 -7 -7 -7 -6 -6 -6 -6 -6 -5 -5 -5 -5 -5 -5 -4 -4 -4 -4 -3 -3 -3 ---------- Run | Scr Mat Mat Min Mat Fac Low Low Dat Pro Fac Low Low Zio Pro Fac Ext Cet Arc Hub Fac Upp Upp Zhi Pro Res Qua Machines Disabled 57 | . 1 2 1 4 . 1 . . . . . . . 2 . 2 1 3 29 3 . 1 . . . 7 Max in Single Turn 28 | . 1 1 1 2 . 1 . . . . . . . . . . . 1 28 . . 1 . . . 1 Garrison Access 3 | . . . . . . . . . . 1 . . . . . . . . 1 1 . . . . . . Network Hub 1 | . . . . . . . . . . . . . . . . . . . 1 . . . . . . . Machines Sabotaged . | . . . . . . . . . . . . . . . . . . . . . . . . . . . Garrisons Compromised . | . . . . . . . . . . . . . . . . . . . . . . . . . . . Overloaded Fab Kills . | . . . . . . . . . . . . . . . . . . . . . . . . . . . Fab Network Shutdowns 2 | . . . . . . . . . . 1 . . . . . . . . . 1 . . . . . . Hacking | -11 -10 -9 -9 -8 -7 -7 -7 -7 -6 -6 -6 -6 -6 -5 -5 -5 -5 -5 -5 -4 -4 -4 -4 -3 -3 -3 --------- Run | Scr Mat Mat Min Mat Fac Low Low Dat Pro Fac Low Low Zio Pro Fac Ext Cet Arc Hub Fac Upp Upp Zhi Pro Res Qua Machines Accessed 69 | . 6 10 1 3 6 1 . 4 1 17 . 1 . 1 4 1 . . . 3 1 1 7 . 1 . Terminals 29 | . 4 6 1 2 3 . . . 1 11 . . . 1 . . . . . . . . . . . . Fabricators 8 | . . . . . 1 . . . . 2 . . . . 3 . . . . 2 . . . . . . Repair Stations 7 | . 1 2 . . . . . . . 2 . . . . 1 1 . . . . . . . . . . Recycling Units 5 | . 1 1 . . 2 . . . . . . . . . . . . . . . . . . . 1 . Scanalyzers 2 | . . 1 . 1 . . . . . . . . . . . . . . . . . . . . . . Garrison Access 3 | . . . . . . . . . . 2 . . . . . . . . . 1 . . . . . . Total Hacks 229 | . 21 29 2 11 15 1 . 30 6 55 . 1 . 7 8 2 . . . 14 1 1 24 . 1 . Successful 156 | . 9 19 1 8 8 1 . 30 3 34 . 1 . 4 6 1 . . . 4 1 1 24 . 1 . Failed 72 | . 12 9 1 3 7 . . . 3 21 . . . 3 2 1 . . . 10 . . . . . . Catastrophic 15 | . 3 2 . . 2 . . . 2 3 . . . 1 . . . . . 2 . . . . . . Database Lockouts 1 | . . 1 . . . . . . . . . . . . . . . . . . . . . . . . Manual 181 | . 4 11 1 . 8 . . . 5 22 . . 2 6 34 23 13 . 13 15 . . . . 2 22 Terminals 95 | . 15 15 2 4 6 . . . 6 40 . . . 7 . . . . . . . . . . . . Fabricators 31 | . . . . . 6 . . . . 6 . . . . 6 . . . . 13 . . . . . . Repair Stations 16 | . 3 4 . . . . . . . 5 . . . . 2 2 . . . . . . . . . . Recycling Units 8 | . 3 1 . . 3 . . . . . . . . . . . . . . . . . . . 1 . Scanalyzers 16 | . . 9 . 7 . . . . . . . . . . . . . . . . . . . . . . Garrison Access 5 | . . . . . . . . . . 4 . . . . . . . . . 1 . . . . . . Terminal Hacks 95 | . 7 6 1 1 . 1 . 30 2 16 . 1 . 4 . . . . . . 1 1 24 . . . Record 31 | . . . . . . . . 11 1 . . . . 1 . . . . . . . 1 17 . . . Part Schematic 19 | . . 1 . . . . . 10 1 2 . . . 2 . . . . . . . . 3 . . . Robot Schematic 6 | . . . . . . . . 6 . . . . . . . . . . . . . . . . . . Prototype ID Bank 8 | . . 1 . . . . . 3 . . . . . . . . . . . . . . 4 . . . Open Door 3 | . . . . . . 1 . . . . . 1 . . . . . . . . 1 . . . . . Level Access Points 2 | . . . 1 . . . . . . 1 . . . . . . . . . . . . . . . . Branch Access Points 3 | . 1 1 . . . . . . . 1 . . . . . . . . . . . . . . . . Emergency Access Points 1 | . . 1 . . . . . . . . . . . . . . . . . . . . . . . . Garrison Index 1 | . . . . . . . . . . 1 . . . . . . . . . . . . . . . . Unreport Threat 2 | . . . . . . . . . . 2 . . . . . . . . . . . . . . . . Locate Traps 8 | . 2 2 . . . . . . . 3 . . . 1 . . . . . . . . . . . . Recall Investigation 1 | . . . . . . . . . . 1 . . . . . . . . . . . . . . . . Recall Extermination 1 | . . . . . . . . . . 1 . . . . . . . . . . . . . . . . Hauler Manifests 2 | . 1 . . . . . . . . 1 . . . . . . . . . . . . . . . . Registered Components 2 | . 1 . . . . . . . . 1 . . . . . . . . . . . . . . . . Zone Layout 5 | . 2 . . 1 . . . . . 2 . . . . . . . . . . . . . . . . Fabricator Hacks 16 | . . . . . 4 . . . . 5 . . . . 4 . . . . 3 . . . . . . Load Schematic 7 | . . . . . 2 . . . . 2 . . . . 2 . . . . 1 . . . . . . Build 9 | . . . . . 2 . . . . 3 . . . . 2 . . . . 2 . . . . . . Repair Station Hacks 10 | . 2 2 . . . . . . . 3 . . . . 2 1 . . . . . . . . . . Scan Component 5 | . 1 1 . . . . . . . 1 . . . . 1 1 . . . . . . . . . . Repair 4 | . 1 1 . . . . . . . 1 . . . . 1 . . . . . . . . . . . Refit 1 | . . . . . . . . . . 1 . . . . . . . . . . . . . . . . Recycling Unit Hacks 1 | . . . . . . . . . . . . . . . . . . . . . . . . . 1 . Retrieve Components 1 | . . . . . . . . . . . . . . . . . . . . . . . . . 1 . Scanalyzer 16 | . . 9 . 7 . . . . . . . . . . . . . . . . . . . . . . Insert Component 7 | . . 4 . 3 . . . . . . . . . . . . . . . . . . . . . . Analyze 9 | . . 5 . 4 . . . . . . . . . . . . . . . . . . . . . . Garrison Access Hacks 2 | . . . . . . . . . . 1 . . . . . . . . . 1 . . . . . . Seal Access 2 | . . . . . . . . . . 1 . . . . . . . . . 1 . . . . . . Unauthorized Hacks 16 | . . 2 . . 4 . . . 1 9 . . . . . . . . . . . . . . . . Terminals 14 | . . 1 . . 3 . . . 1 9 . . . . . . . . . . . . . . . . Track 7 | . . 1 . . 2 . . . 1 3 . . . . . . . . . . . . . . . . Assimilate 1 | . . . . . . . . . . 1 . . . . . . . . . . . . . . . . Botnet 5 | . . . . . 1 . . . . 4 . . . . . . . . . . . . . . . . Operators 1 | . . . . . . . . . . 1 . . . . . . . . . . . . . . . . Fabricators . | . . . . . . . . . . . . . . . . . . . . . . . . . . . Repair Stations . | . . . . . . . . . . . . . . . . . . . . . . . . . . . Recycling Units 2 | . . 1 . . 1 . . . . . . . . . . . . . . . . . . . . . Tunnel 2 | . . 1 . . 1 . . . . . . . . . . . . . . . . . . . . . Scanalyzers . | . . . . . . . . . . . . . . . . . . . . . . . . . . . Garrison Access . | . . . . . . . . . . . . . . . . . . . . . . . . . . . Data Cores Recovered . | . . . . . . . . . . . . . . . . . . . . . . . . . . . Used . | . . . . . . . . . . . . . . . . . . . . . . . . . . . Hacking Detections 42 | . 6 6 1 3 4 . . . 1 16 . . . 1 2 1 . . . 1 . . . . . . Full Trace Events 6 | . 1 . . 1 . . . . . 3 . . . 1 . . . . . . . . . . . . Feedback Events 1 | . . . . . . . . . . 1 . . . . . . . . . . . . . . . . Corruption 1 | . . . . . . . . . . 1 . . . . . . . . . . . . . . . . Feedback Blocked . | . . . . . . . . . . . . . . . . . . . . . . . . . . . Robot Schematics Acquired 13 | . . . . . . . . 6 . . . . . . 4 . . . 3 . . . . . . . Robots Built 1 | . . . . . . . . . . . . . . . . . . . . 1 . . . . . . Matter 318 | . . . . . . . . . . . . . . . . . . . . 318 . . . . . . Time 169 | . . . . . . . . . . . . . . . . . . . . 169 . . . . . . Total Robot Build Rating 6 | . . . . . . . . . . . . . . . . . . . . 6 . . . . . . Part Schematics Acquired 88 | . . 5 . 3 . . . 10 1 2 . . . 2 21 12 . . . . . . 3 . . 29 Parts Built 8 | . . . . . 3 . . . . 3 . . . . 2 . . . . . . . . . . . Matter 1450 | . . . . . 288 . . . . 665 . . . . 497 . . . . . . . . . . . Time 525 | . . . . . 150 . . . . 170 . . . . 205 . . . . . . . . . . . Total Part Build Rating 31 | . . . . . 4 . . . . 15 . . . . 12 . . . . . . . . . . . Parts Repaired 4 | . 1 1 . . . . . . . 1 . . . . 1 . . . . . . . . . . . Time 158 | . 26 32 . . . . . . . 44 . . . . 56 . . . . . . . . . . . Parts Recycled . | . . . . . . . . . . . . . . . . . . . . . . . . . . . Recycled Matter . | . . . . . . . . . . . . . . . . . . . . . . . . . . . Retrieved Matter . | . . . . . . . . . . . . . . . . . . . . . . . . . . . Retrieved Components 2 | . . . . . . . . . . . . . . . . . . . . . . . . . 2 . Parts Scanalyzed 7 | . . 4 . 3 . . . . . . . . . . . . . . . . . . . . . . Part Schematics Acquired 7 | . . 4 . 3 . . . . . . . . . . . . . . . . . . . . . . Parts Damaged . | . . . . . . . . . . . . . . . . . . . . . . . . . . . Bothacking | -11 -10 -9 -9 -8 -7 -7 -7 -7 -6 -6 -6 -6 -6 -5 -5 -5 -5 -5 -5 -4 -4 -4 -4 -3 -3 -3 ------------ Run | Scr Mat Mat Min Mat Fac Low Low Dat Pro Fac Low Low Zio Pro Fac Ext Cet Arc Hub Fac Upp Upp Zhi Pro Res Qua Used RIF Installer . | . . . . . . . . . . . . . . . . . . . . . . . . . . . Robots Hacked . | . . . . . . . . . . . . . . . . . . . . . . . . . . . Non-combat . | . . . . . . . . . . . . . . . . . . . . . . . . . . . Combat . | . . . . . . . . . . . . . . . . . . . . . . . . . . . Robot Hacks Applied . | . . . . . . . . . . . . . . . . . . . . . . . . . . . Relay Couplers Released 1 | . . . . . . . . . . . . . . . . . . . 1 . . . . . . . Machine Destruction 1 | . . . . . . . . . . . . . . . . . . . 1 . . . . . . . Robots Rewired 19 | . . . . . . . . . . . . . . . . 19 . . . . . . . . . . Allies Hacked . | . . . . . . . . . . . . . . . . . . . . . . . . . . . Hacks Repelled 1 | . . . . . . . . . . . . . . . . . 1 . . . . . . . . . Allies | -11 -10 -9 -9 -8 -7 -7 -7 -7 -6 -6 -6 -6 -6 -5 -5 -5 -5 -5 -5 -4 -4 -4 -4 -3 -3 -3 -------- Run | Scr Mat Mat Min Mat Fac Low Low Dat Pro Fac Low Low Zio Pro Fac Ext Cet Arc Hub Fac Upp Upp Zhi Pro Res Qua Total Allies 66 | . . . 5 . . . . . . . . . 9 . 3 30 2 . 5 9 . . . . 3 . Largest Group 22 | . . . 4 1 . . . . . . . . 9 9 2 22 17 5 3 4 . . . . 3 3 Highest-Rated Group 874 | . . . 71 16 . . . . . . . . 272 272 170 874 635 136 84 288 . . . . 210 210 Highest-Rated Ally 96 | . . . 31 16 . . . . . . . . 40 40 85 85 85 32 32 96 . . . . 70 70 Zionite Dispatches 15 | . . . . . . . . . . . . . . . 2 4 2 . 3 3 . . . . 1 . Heavy 2 | . . . . . . . . . . . . . . . 1 1 . . . . . . . . . . Light 3 | . . . . . . . . . . . . . . . . 2 . . . 1 . . . . . . Recon 1 | . . . . . . . . . . . . . . . . . 1 . . . . . . . . . Fire 3 | . . . . . . . . . . . . . . . . 1 . . 1 1 . . . . . . Hacker 1 | . . . . . . . . . . . . . . . . . . . . . . . . . 1 . Demo 1 | . . . . . . . . . . . . . . . . . 1 . . . . . . . . . Explosive Resupply 1 | . . . . . . . . . . . . . . . . . . . 1 . . . . . . . Melee Resupply 1 | . . . . . . . . . . . . . . . 1 . . . . . . . . . . . Trap Resupply 1 | . . . . . . . . . . . . . . . . . . . 1 . . . . . . . Hacking Resupply 1 | . . . . . . . . . . . . . . . . . . . . 1 . . . . . . Total Orders 11 | . . . . 1 . . . . . . . . 1 . 1 . 1 . 4 2 . . . . . 1 STAY 4 | . . . . 1 . . . . . . . . . . . . . . 2 1 . . . . . . DROP 4 | . . . . . . . . . . . . . . . 1 . . . 2 1 . . . . . . EXPLORE 2 | . . . . . . . . . . . . . . . . . 1 . . . . . . . . 1 RETURN 1 | . . . . . . . . . . . . . 1 . . . . . . . . . . . . . Ally Attacks 411 | . . . 24 3 . . . . . . . . . 52 . 178 99 6 3 42 . . . . . 4 Total Damage 11339 | . . . 357 17 . . . . . . . . . 1695 . 4212 2655 113 59 1887 . . . . . 344 Kills 89 | . . . 8 . . . . . . . . . . 6 . 32 17 1 1 22 . . . . . 2 Allies Corrupted 7 | . . . . . . . . . . . . . . . . 3 1 . 2 1 . . . . . . Allies Melted . | . . . . . . . . . . . . . . . . . . . . . . . . . . . Intel | -11 -10 -9 -9 -8 -7 -7 -7 -7 -6 -6 -6 -6 -6 -5 -5 -5 -5 -5 -5 -4 -4 -4 -4 -3 -3 -3 ------- Run | Scr Mat Mat Min Mat Fac Low Low Dat Pro Fac Low Low Zio Pro Fac Ext Cet Arc Hub Fac Upp Upp Zhi Pro Res Qua Robot Analysis Total 115 | . . . . . . . . 115 . . . . . . . . . . . . . . . . . . Derelict Logs Recovered 14 | . . . 1 . . 2 1 . 2 . 1 2 1 1 . . . . . . 1 2 . . . . Drone Launches 3 | . . . . . . . . . . . . . 1 . . . 1 . . . . . . . . 1 Drone Recoveries 2 | . . . . . . . . . . . . . 1 . . . 1 . . . . . . . . . Decoded 0b10 Intel 8 | . . . . . . . . . . . . . . . . . . . . . . . . . 3 5 Items 8 | . . . . . . . . . . . . . . . . . . . . . . . . . 3 5 Zionite Intel Received 17 | . . . . . . . . . . . . . . . 6 2 1 . 1 1 . . . . . 6 Main Access 1 | . . . . . . . . . . . . . . . 1 . . . . . . . . . . . Prototype Stockpiles 2 | . . . . . . . . . . . . . . . . 1 . . . . . . . . . 1 Component Schematics 2 | . . . . . . . . . . . . . . . . . . . . . . . . . . 2 Prototype Schematics 3 | . . . . . . . . . . . . . . . 2 1 . . . . . . . . . . Unaware Schematics 2 | . . . . . . . . . . . . . . . 1 . . . 1 . . . . . . . Unaware Analyses 3 | . . . . . . . . . . . . . . . 1 . . . . 1 . . . . . 1 Active Terminals 1 | . . . . . . . . . . . . . . . . . . . . . . . . . . 1 Active Garrisons 1 | . . . . . . . . . . . . . . . . . . . . . . . . . . 1 Depthwide Sectors/0 1 | . . . . . . . . . . . . . . . 1 . . . . . . . . . . . Depthwide Sectors/-1 1 | . . . . . . . . . . . . . . . . . 1 . . . . . . . . . Exploration | -11 -10 -9 -9 -8 -7 -7 -7 -7 -6 -6 -6 -6 -6 -5 -5 -5 -5 -5 -5 -4 -4 -4 -4 -3 -3 -3 ------------- Run | Scr Mat Mat Min Mat Fac Low Low Dat Pro Fac Low Low Zio Pro Fac Ext Cet Arc Hub Fac Upp Upp Zhi Pro Res Qua Turns Passed 15435 | 93 840 1967 792 207 457 489 240 41 618 818 256 110 452 805 984 1670 399 443 265 692 496 460 148 194 208 1291 Spaces Moved 16951 | 39 435 959 363 285 708 1143 415 111 1227 1628 582 312 854 1089 1213 1083 223 201 316 790 675 546 181 595 417 561 Core 183 | 1 . . . . . . . . . 2 . . . 112 7 . . . . . . . . . . 61 Treads 1719 | 38 139 339 363 26 . . . . . . . . . . . . 187 166 . . . 27 . . . 434 Legs 540 | . . . . . . . . . . . . . . 4 . 533 . . . . . . . . . 3 Wheels 1289 | . 296 620 . . . . . . . . . . . 373 . . . . . . . . . . . . Hover 4243 | . . . . . . . . . . 12 . . . . 1206 550 36 35 316 790 675 519 104 . . . Flight 8977 | . . . . 259 708 1143 415 111 1227 1614 582 312 854 600 . . . . . . . . 77 595 417 63 Fastest Speed 23 | 50 110 110 200 29 29 29 29 29 29 23 32 32 32 32 40 53 53 58 58 60 65 66 29 29 35 32 Average Speed 62 | 157 130 144 200 44 29 29 29 29 29 32 32 32 32 58 48 107 142 144 58 62 65 74 53 29 35 125 Slowest Speed 400 | 160 200 260 200 200 99 29 29 29 29 400 108 32 32 200 210 230 160 160 60 65 106 180 70 35 35 200 Overloaded Moves 129 | . . . . . . . . . . 129 . . . . . . . . . . . . . . . . Propulsion Burnouts 2 | . . . . . . . . . . 2 . . . . . . . . . . . . . . . . Robots Hopped 30 | . . . . . 2 1 . 4 3 4 . . . 8 . . . . . . . . . 4 3 1 Cave-ins Triggered . | . . . . . . . . . . . . . . . . . . . . . . . . . . . Teleports 2 | . . . . . . . . . . . . . . . . . . . . . . . . 1 . 1 Exploration Rate (%) 62 | 3 73 75 77 28 19 98 33 77 94 47 73 58 90 96 31 86 71 98 36 35 86 82 62 83 12 67 Regions Visited 26 Branch Regions 18 Pre-discovered Areas 48 | . . 1 1 . 1 . . 25 . . . 1 2 . 10 . 4 . . . . . 3 . . . Known Exits Taken 24 | . . 1 1 1 1 1 1 1 1 1 1 1 1 1 1 1 1 1 1 1 1 1 1 1 1 . Unknown Exits Taken 2 | 1 1 . . . . . . . . . . . . . . . . . . . . . . . . . Scrap Searched 34 | . . . 1 . . 4 2 . 2 . 11 1 2 3 . . . . . . 2 1 . 5 . . Spaces Dug 150 | . . 1 74 6 . . 1 . 6 11 2 1 . . 15 . . . 11 22 . . . . . . Terrain Destroyed 631 | . . 89 115 6 19 . 21 . 38 49 2 1 . . 15 5 1 12 175 67 11 . . . . 5 Melee 36 | . . . . . . . 1 . 6 11 2 1 . . 15 . . . . . . . . . . . Projectile 66 | . . 4 1 . . . . . . . . . . . . 5 1 12 12 26 . . . . . 5 AOE 529 | . . 85 114 6 19 . 20 . 32 38 . . . . . . . . 163 41 11 . . . . . Terrain Rammed . | . . . . . . . . . . . . . . . . . . . . . . . . . . . Walls Destroyed . | . . . . . . . . . . . . . . . . . . . . . . . . . . . Machines Disabled . | . . . . . . . . . . . . . . . . . . . . . . . . . . . Actions | -11 -10 -9 -9 -8 -7 -7 -7 -7 -6 -6 -6 -6 -6 -5 -5 -5 -5 -5 -5 -4 -4 -4 -4 -3 -3 -3 --------- Run | Scr Mat Mat Min Mat Fac Low Low Dat Pro Fac Low Low Zio Pro Fac Ext Cet Arc Hub Fac Upp Upp Zhi Pro Res Qua Total 20536 | 56 604 1353 400 371 940 1299 529 113 1472 1869 634 317 1033 1196 1525 1478 279 269 371 922 714 588 229 610 475 890 Wait 1723 | . 88 156 3 43 189 145 99 1 230 114 11 . 169 17 169 114 4 12 15 19 . 19 25 . 51 30 Move 16875 | 38 434 958 362 284 703 1140 414 104 1220 1620 581 311 853 1077 1212 1082 222 200 315 789 674 545 180 587 411 559 Hop 20 | . . . . . 2 1 . 2 3 3 . . . 3 . . . . . . . . . 3 2 1 Pick Up 167 | 6 12 39 1 5 7 2 4 . 2 19 6 1 1 1 8 8 6 . 2 7 5 . 6 5 2 12 Fast Attach 207 | 6 3 8 1 . 1 2 1 . . 19 7 . 3 15 30 19 5 3 3 9 6 3 6 6 4 47 Attach 111 | . 3 9 1 10 6 . . . 4 11 4 1 1 5 6 2 1 . . 6 5 5 1 3 . 27 Detach 59 | . 1 1 1 2 2 1 . 1 1 8 4 . 1 4 1 4 . . . 4 3 2 1 1 1 15 Swap 124 | . 6 37 2 6 3 2 1 3 1 15 3 . . 1 7 17 7 1 3 4 . . 1 . . 4 Drop 231 | . 2 33 1 20 6 5 5 1 1 29 8 1 5 11 15 28 14 1 3 13 4 3 1 4 4 13 Fire 600 | 6 55 111 28 1 15 . 4 . 3 6 . . . 21 4 27 20 52 23 68 17 9 . 1 . 129 Melee 242 | . . . . . . 1 1 1 7 25 10 3 . 22 73 62 . . . . . . . . . 37 Ram 24 | . . . . . . . . . . . . . . 11 . 2 . . . 2 . . 8 . . 1 Kick 9 | . . . . . . . . . . . . . . 8 . . . . . . . . . . . 1 Crush 15 | . . 1 . . . . . . . . . . . . . . . . . . . . . . . 14 Escape Stasis 6 | . . . . . 6 . . . . . . . . . . . . . . . . . . . . . Rewire 113 | . . . . . . . . . . . . . . . . 113 . . . . . . . . . . Trap 10 | . . . . . . . . . . . . . . . . . . . 7 1 . 2 . . . . Miscellaneous . | . . . . . . . . . . . . . . . . . . . . . . . . . . . Route ------- -11/Scrapyard -10/Materials (discovered 3 exits: *Mat x2 / *Min) -9/Materials (discovered 3 exits: *Mat x2 / *Min) -9/Mines (discovered 2 exits: *Mat x2) -8/Materials -7/Factory -7/Lower Caves -7/Lower Caves (discovered 2 exits: Fac / *Dat) -7/Data Miner -6/Proximity Caves -6/Factory (discovered 6 exits: *Fac x4 / *Low x2) -6/Lower Caves -6/Lower Caves (discovered 2 exits: *Fac / *Zio) -6/Zion -5/Proximity Caves -5/Factory (discovered 7 exits: *Fac x4 / *Upp x2 / *Ext) -5/Extension (discovered 2 exits: *Fac / *Cet) -5/Cetus (discovered 2 exits: *Fac / *Arc) -5/Archives (discovered 3 exits: *Fac / *Hub x2) -5/Hub_04(d) (discovered 2 exits: *Fac x2) -4/Factory (discovered 3 exits: *Res x2 / *Upp) -4/Upper Caves -4/Upper Caves (discovered 2 exits: *Res / *Zhi) -4/Zhirov -3/Proximity Caves -3/Research -3/Quarantine History --------- Turn | Location | Event 12 | -11/Scrapyard | Discovered new exit (range 15) 94 | -11/Scrapyard | Entered Materials 325 | -10/Materials | Build established: Mutant 415 | -10/Materials | Discovered new exit (range 7) 678 | -10/Materials | Identified exit to Mines 753 | -10/Materials | Discovered new exit (range 11) 851 | -10/Materials | Repaired Lgt. Treads 913 | -10/Materials | Core integrity fell below 50% 919 | -10/Materials | Discovered new exit (range 13) 934 | -10/Materials | Entered another Materials area 934 | -9/Materials | Evolved 2 slots: Utility x2 1289 | -9/Materials | Lost 3 parts (1p1n1w) 1451 | -9/Materials | Repaired Hvy. Assault Rifle 1710 | -9/Materials | Discovered new exit (range 9) 2213 | -9/Materials | Discovered new exit (range 16) 2216 | -9/Materials | Build established: Hauler-Mutant 2393 | -9/Materials | Central database locked down 2570 | -9/Materials | Identified exit to Mines 2791 | -9/Materials | Core integrity fell below 50% 2901 | -9/Materials | Entered Mines 2905 | -9/Mines | Identified exit to Materials 2979 | -9/Mines | Learned location of Storage (-7) 3302 | -9/Mines | Learned Materials garrison access intel 3335 | -9/Mines | Excavation squad dispatched 3335 | -9/Mines | A large section of the Mines collapsed 3545 | -9/Mines | Assisted by bots powering up and referring to "LRC-V3" 3585 | -9/Mines | Excavation squad dispatched 3693 | -9/Mines | Entered Materials 3693 | -8/Materials | Accompanied by 1 ally 3693 | -8/Materials | Evolved 2 slots: Propulsion x1, Utility x1 3694 | -8/Materials | Loaded intel: 1 garrison access location 3883 | -8/Materials | Discovered new exit (range 12) 3900 | -8/Materials | Identified exit to Factory 3900 | -8/Materials | Entered Factory 3900 | -7/Factory | Evolved 2 slots: Utility x2 4129 | -7/Factory | Discovered new exit (range 20) 4267 | -7/Factory | Fabricated Imp. Flight Unit (x1) 4282 | -7/Factory | Identified exit to Lower Caves 4325 | -7/Factory | Fabricated Lgt. Armor Plating? 4357 | -7/Factory | Entered Lower Caves 4629 | -7/Lower Caves | Learned 4 Factory zone layouts 4665 | -7/Lower Caves | Discovered new exit (range 15) 4670 | -7/Lower Caves | Identified exit to Lower Caves 4721 | -7/Lower Caves | Build established: Scout 4846 | -7/Lower Caves | Entered another Lower Caves area 4850 | -7/Lower Caves | Identified exit to Factory 4851 | -7/Lower Caves | Discovered new exit (range 10) 4853 | -7/Lower Caves | Identified exit to Data Miner 5056 | -7/Lower Caves | Spotted B-75 Beast 5086 | -7/Lower Caves | Entered Data Miner 5086 | -7/Data Miner | Discovered new exit (range 6) 5092 | -7/Data Miner | Identified exit to Proximity Caves 5095 | -7/Data Miner | Met Data Miner 5101 | -7/Data Miner | Learned location of Section 7 (-2) 5101 | -7/Data Miner | Acquired the access code to Warlord's prototype stash 5113 | -7/Data Miner | Received God Mode back door access code from Data Miner 5119 | -7/Data Miner | Interfaced with the Data Conduit 5127 | -7/Data Miner | Entered Proximity Caves 5130 | -6/Proximity Caves | Learned Factory emergency access door positions 5149 | -6/Proximity Caves | Spotted B-75 Beast 5199 | -6/Proximity Caves | Learned Factory security intel 5682 | -6/Proximity Caves | Core integrity fell below 50% 5690 | -6/Proximity Caves | Attracted the attention of an 0b10 checkpoint 5736 | -6/Proximity Caves | Discovered exit to Factory (range 8) 5745 | -6/Proximity Caves | Entered Factory 5745 | -6/Factory | Evolved 2 slots: Power x1, Propulsion x1 5749 | -6/Factory | Loaded intel: 273 machine locations 5749 | -6/Factory | Discovered new exit (range 3) 5749 | -6/Factory | Identified exit to Lower Caves 5928 | -6/Factory | Discovered new exit (range 4) 5929 | -6/Factory | Identified exit to Factory 5953 | -6/Factory | Fabricated Imp. Hacking Suite? 5985 | -6/Factory | Repaired Lyr. Light Armor Plating 6044 | -6/Factory | Fabricated Imp. Hacking Suite (x1) 6108 | -6/Factory | Spotted B-75 Beast 6148 | -6/Factory | Discovered exit to Factory (range 13) 6230 | -6/Factory | Build established: Hacker-Sprinter 6335 | -6/Factory | Intercept squad dispatched 6350 | -6/Factory | Fabricated Exp. Sensor Array (x1) 6362 | -6/Factory | Spotted Tracker 6387 | -6/Factory | Destroyed Tracker 6414 | -6/Factory | Lost 4 parts (2p1u1w) 6457 | -6/Factory | Spotted Combat Programmer 6528 | -6/Factory | Found Exp. Signal Interpreter 6533 | -6/Factory | Lost 6 parts (2p3n1u) 6551 | -6/Factory | Local fabrication network quarantined 6563 | -6/Factory | Entered Lower Caves 6582 | -6/Lower Caves | Learned location of 1 exit from Factory 6817 | -6/Lower Caves | Discovered new exit (range 8) 6819 | -6/Lower Caves | Identified exit to Lower Caves 6819 | -6/Lower Caves | Entered another Lower Caves area 6857 | -6/Lower Caves | Encountered a Warlord checkpoint 6927 | -6/Lower Caves | Discovered new exit (range 8) 6928 | -6/Lower Caves | Identified exit to Zion 6929 | -6/Lower Caves | Entered Zion 6942 | -6/Zion | System corruption cleaned by Quarantine Array 7004 | -6/Zion | Given the Hacking Drone Bay 7004 | -6/Zion | Found Prototype Device 7004 | -6/Zion | Identified Hacking Drone Bay 7025 | -6/Zion | Build established: Derelict-Scout 7045 | -6/Zion | Gained Derelict followers 7092 | -6/Zion | Found Prototype Device 7092 | -6/Zion | Identified Mobile Refinery Mk. CCLXVII 7128 | -6/Zion | Imprinted 7130 | -6/Zion | Declared Zion's savior 7189 | -6/Zion | Received a hallucinogenic algorithm 7209 | -6/Zion | Discovered new exit (range 12) 7229 | -6/Zion | Identified exit to Proximity Caves 7364 | -6/Zion | Build established: Hacker-Scout 7381 | -6/Zion | Entered Proximity Caves 7381 | -5/Proximity Caves | Accompanied by 9 allies 7433 | -5/Proximity Caves | Spotted B-75 Beast 7474 | -5/Proximity Caves | Allies destroyed B-75 Beast 7502 | -5/Proximity Caves | Lost 5 parts (2p2n1u) 7911 | -5/Proximity Caves | Learned 8 Factory zone layouts 7921 | -5/Proximity Caves | Build established: Scavenger-Mutant 8069 | -5/Proximity Caves | Core integrity fell below 50% 8128 | -5/Proximity Caves | Core integrity fell below 20% 8157 | -5/Proximity Caves | Discovered exit to Factory (range 13) 8158 | -5/Proximity Caves | Lost 12 parts (2p3n4u3w) 8186 | -5/Proximity Caves | Entered Factory 8186 | -5/Factory | Evolved 2 slots: Utility x2 8187 | -5/Factory | Identified exit to Upper Caves 8188 | -5/Factory | Identified exit to Factory 8190 | -5/Factory | Loaded intel: 255 machine locations 8368 | -5/Factory | Retrieved Zion intel report: Unaware Schematics 8414 | -5/Factory | Build established: Mutant 8446 | -5/Factory | Zion Melee Resupply teleported in 8549 | -5/Factory | Spotted B-75 Beast 8551 | -5/Factory | Retrieved Zion intel report: Unaware Analyses 8602 | -5/Factory | Retrieved Zion intel report: Main Access 8640 | -5/Factory | Found Exp. Signal Interpreter 8642 | -5/Factory | Retrieved Zion intel report: Prototype Schematics 8674 | -5/Factory | Repaired Smartbomb Launcher 8782 | -5/Factory | Retrieved Zion intel report: Depthwide Sectors/0 8786 | -5/Factory | Retrieved Zion intel report: Prototype Schematics 8822 | -5/Factory | Build established: Hacker-Mutant 8837 | -5/Factory | Intercept squad dispatched 8838 | -5/Factory | Spotted Tracker 8843 | -5/Factory | Spotted Combat Programmer 8871 | -5/Factory | System corruption reached 10% 8925 | -5/Factory | Destroyed Tracker 8954 | -5/Factory | Lost 6 parts (4n2u) 9128 | -5/Factory | Fabricated Cmb. Gravmag System (x2) 9158 | -5/Factory | Discovered new exit (range 16) 9164 | -5/Factory | Zion Heavy squad teleported in 9166 | -5/Factory | Identified exit to Extension 9170 | -5/Factory | Entered Extension 9170 | -5/Extension | Accompanied by 2 allies 9171 | -5/Extension | Loaded intel: 36 machine locations 9209 | -5/Extension | Found Prototype Protection 9209 | -5/Extension | Identified Zio. Heavy Carapace 9292 | -5/Extension | Zion Light squad teleported in 9692 | -5/Extension | Build established: Commander-Mutant 9928 | -5/Extension | Spotted B-75 Beast 9935 | -5/Extension | Allies destroyed B-75 Beast 9953 | -5/Extension | Spotted B-75 Beast 9963 | -5/Extension | Allies destroyed B-75 Beast 9987 | -5/Extension | Retrieved Zion intel report: Prototype Schematics 9988 | -5/Extension | Zion Heavy squad teleported in 10177 | -5/Extension | Zion Light squad teleported in 10182 | -5/Extension | Zion Fire squad teleported in 10233 | -5/Extension | Build established: Scavenger-Mutant 10268 | -5/Extension | Retrieved Zion intel report: Prototype Stockpiles 10370 | -5/Extension | First assault squad dispatched 10373 | -5/Extension | Terminal network hard line cut 10529 | -5/Extension | Found Prototype Protection 10529 | -5/Extension | Identified Zio. Weapon Casing 10562 | -5/Extension | Build established: Commander-Mutant 10751 | -5/Extension | Discovered exit to Factory (range 10) 10751 | -5/Extension | Discovered new exit (range 6) 10763 | -5/Extension | Identified exit to Cetus 10840 | -5/Extension | Entered Cetus 10840 | -5/Cetus | Accompanied by 17 allies 10841 | -5/Cetus | Loaded intel: 24 machine locations 10849 | -5/Cetus | Spotted Cetus Guard 10850 | -5/Cetus | Spotted Cetus Guard 10851 | -5/Cetus | Spotted Cetus Guard 10852 | -5/Cetus | Spotted Cetus Guard 10868 | -5/Cetus | Allies destroyed Cetus Guard 10868 | -5/Cetus | Allies destroyed Cetus Guard 10869 | -5/Cetus | Allies destroyed Cetus Guard 10874 | -5/Cetus | Allies destroyed Cetus Guard 10951 | -5/Cetus | Zion Recon squad teleported in 10962 | -5/Cetus | Discovered new exit (range 29) 10969 | -5/Cetus | Zion Demo squad teleported in 10971 | -5/Cetus | Discovered exit to Factory (range 42) 10972 | -5/Cetus | Spotted Cetus Guard 10974 | -5/Cetus | Spotted Cetus Guard 11008 | -5/Cetus | Retrieved Zion intel report: Depthwide Sectors/-1 11032 | -5/Cetus | P-70 Sage assimilated allied 3S-SST(d) 11113 | -5/Cetus | Spotted Cetus Guard 11116 | -5/Cetus | Destroyed Cetus Guard 11121 | -5/Cetus | Spotted Cetus Guard 11124 | -5/Cetus | Allies destroyed Cetus Guard 11146 | -5/Cetus | Destroyed Cetus Guard 11149 | -5/Cetus | Destroyed Cetus Guard 11158 | -5/Cetus | Scared off Revision 17 11234 | -5/Cetus | Identified exit to Archives 11239 | -5/Cetus | Entered Archives 11239 | -5/Archives | Accompanied by 5 allies 11240 | -5/Archives | Loaded intel: 8 machine locations 11438 | -5/Archives | Build established: Scavenger-Mutant 11462 | -5/Archives | Unable to access archive contents 11464 | -5/Archives | Discovered new exit (range 16) 11538 | -5/Archives | Discovered exit to Factory (range 15) 11591 | -5/Archives | Discovered new exit (range 13) 11612 | -5/Archives | Identified exit to Hub_04(d) 11682 | -5/Archives | Entered Hub_04(d) 11682 | -5/Hub_04(d) | Accompanied by 1 ally 11683 | -5/Hub_04(d) | Loaded intel: 97 machine locations 11703 | -5/Hub_04(d) | Zion Explosive Resupply teleported in 11766 | -5/Hub_04(d) | Discovered exit to Factory (range 15) 11853 | -5/Hub_04(d) | Discovered exit to Factory (range 13) 11869 | -5/Hub_04(d) | Retrieved Zion intel report: Unaware Schematics 11870 | -5/Hub_04(d) | Zion Trap Resupply teleported in 11929 | -5/Hub_04(d) | Zion Fire squad teleported in 11945 | -5/Hub_04(d) | Network Hub disabled 11947 | -5/Hub_04(d) | Entered Factory 11947 | -4/Factory | Evolved 2 slots: Utility x2 11948 | -4/Factory | Loaded intel: 237 machine locations 11965 | -4/Factory | Zion Hacking Resupply teleported in 11968 | -4/Factory | Found Exp. System Shield 12064 | -4/Factory | Found Quantum Capacitor 12197 | -4/Factory | First assault squad dispatched 12236 | -4/Factory | Local fabrication network quarantined 12242 | -4/Factory | Retrieved Zion intel report: Unaware Analyses 12243 | -4/Factory | Zion Light squad teleported in 12251 | -4/Factory | Garrison activated, responded to threat 12266 | -4/Factory | Build established: Hacker-Mutant 12356 | -4/Factory | Fabricated D-63 Destroyer? 12419 | -4/Factory | Discovered new exit (range 15) 12436 | -4/Factory | Identified exit to Research 12445 | -4/Factory | Zion Fire squad teleported in 12550 | -4/Factory | Spotted B-86 Titan 12580 | -4/Factory | Discovered exit to Research (range 5) 12610 | -4/Factory | Discovered new exit (range 12) 12638 | -4/Factory | Identified exit to Upper Caves 12639 | -4/Factory | Entered Upper Caves 12687 | -4/Upper Caves | Destroyed 7 combat bots 12695 | -4/Upper Caves | Lost 5 parts (1n3u1w) 12928 | -4/Upper Caves | Build established: Scavenger-Mutant 13038 | -4/Upper Caves | Encountered a Warlord checkpoint 13066 | -4/Upper Caves | Discovered new exit (range 5) 13069 | -4/Upper Caves | Identified exit to Upper Caves 13077 | -4/Upper Caves | Learned Research terminal intel 13135 | -4/Upper Caves | Entered another Upper Caves area 13148 | -4/Upper Caves | Discovered exit to Research (range 13) 13165 | -4/Upper Caves | Lost 3 parts (1p1n1u) 13180 | -4/Upper Caves | Found Alien Artifact 13180 | -4/Upper Caves | Identified Dimensional Node Initializer 13180 | -4/Upper Caves | Initialized slip node 13278 | -4/Upper Caves | Learned Research emergency access door positions 13284 | -4/Upper Caves | Learned 4 Research zone layouts 13477 | -4/Upper Caves | Attracted the attention of an 0b10 checkpoint 13490 | -4/Upper Caves | Lost 6 parts (1p1n1u3w) 13532 | -4/Upper Caves | Core integrity fell below 50% 13585 | -4/Upper Caves | Discovered new exit (range 14) 13594 | -4/Upper Caves | Identified exit to Zhirov 13595 | -4/Upper Caves | Entered Zhirov 13595 | -4/Zhirov | Discovered new exit (range 3) 13608 | -4/Zhirov | Met Zhirov 13635 | -4/Zhirov | Zhirov requested help retrieving the SGEMP Prototype 13645 | -4/Zhirov | Found Alien Artifact 13645 | -4/Zhirov | Identified Integrated Dissipator 13645 | -4/Zhirov | Installed Integrated Dissipator, increased core heat dissipation (+20) 13657 | -4/Zhirov | Found Alien Artifact 13742 | -4/Zhirov | Identified exit to Proximity Caves 13743 | -4/Zhirov | Entered Proximity Caves 13843 | -3/Proximity Caves | Lost 3 parts (1n2u) 13859 | -3/Proximity Caves | Spotted B-86 Titan 13860 | -3/Proximity Caves | Identified Transdimensional Reconstructor 13860 | -3/Proximity Caves | Warped through subspace 13861 | -3/Proximity Caves | Core integrity fell below 20% 13907 | -3/Proximity Caves | Attracted the attention of an 0b10 base 13934 | -3/Proximity Caves | Discovered exit to Research (range 9) 13937 | -3/Proximity Caves | Entered Research 13937 | -3/Research | Evolved 2 slots: Utility x2 13940 | -3/Research | Loaded intel: 122 machine locations 13941 | -3/Research | Loaded intel: 19 terminal locations 13961 | -3/Research | Lost 3 parts (2p1u) 14081 | -3/Research | Spotted B-90 Cyclops 14136 | -3/Research | Discovered new exit (range 16) 14140 | -3/Research | Zion Hacker squad teleported in 14142 | -3/Research | Identified exit to Quarantine 14145 | -3/Research | Entered Quarantine 14145 | -3/Quarantine | Accompanied by 3 allies 14146 | -3/Quarantine | Loaded intel: 69 machine locations 14146 | -3/Quarantine | Spotted Alpha 7 14198 | -3/Quarantine | Found Alien Artifact 14198 | -3/Quarantine | Identified Phase Redirector 14222 | -3/Quarantine | Scanned by Researcher 14267 | -3/Quarantine | Core integrity fell below 50% 14275 | -3/Quarantine | Retrieved Zion intel report: Active Garrisons 14292 | -3/Quarantine | Lost 6 parts (1p2n2u1w) 14375 | -3/Quarantine | Lost 3 parts (1p2u) 14459 | -3/Quarantine | Retrieved Zion intel report: Unaware Analyses 14565 | -3/Quarantine | Lost 5 parts (1p1n3w) 14597 | -3/Quarantine | Retrieved Zion intel report: Component Schematics 14622 | -3/Quarantine | Found Centrium Greatsword 14642 | -3/Quarantine | Retrieved Zion intel report: Component Schematics 14646 | -3/Quarantine | Met incapacitated Sigix Warrior 14646 | -3/Quarantine | Lockdown squad dispatched 14707 | -3/Quarantine | Retrieved Zion intel report: Active Terminals 14774 | -3/Quarantine | Lost 5 parts (2p3u) 14783 | -3/Quarantine | Spotted Lightning 14784 | -3/Quarantine | Spotted Lightning 14786 | -3/Quarantine | System corruption reached 10% 14786 | -3/Quarantine | Spotted Lightning 14788 | -3/Quarantine | Retrieved Zion intel report: Prototype Stockpiles 14791 | -3/Quarantine | Core integrity fell below 20% 14836 | -3/Quarantine | Destroyed Lightning 14847 | -3/Quarantine | Lost 7 parts (1p1n4u1w) 14873 | -3/Quarantine | Destroyed Lightning 14891 | -3/Quarantine | Destroyed Lightning 14894 | -3/Quarantine | Found Exp. Phase Shifter 14903 | -3/Quarantine | Found Exp. Phase Shifter 14907 | -3/Quarantine | Found Exp. Targeting Computer 14910 | -3/Quarantine | Found EM Dispersion Field 14922 | -3/Quarantine | Found Exp. Targeting Computer 14928 | -3/Quarantine | Found Exp. Targeting Computer 14939 | -3/Quarantine | Found Prototype Energy Cannon 14939 | -3/Quarantine | Identified EMDS 15125 | -3/Quarantine | Found Alien Artifact 15125 | -3/Quarantine | Identified Subatomic Replicator 15128 | -3/Quarantine | Used Subatomic Replicator to replicate EMDS 15157 | -3/Quarantine | Found Alien Impact Weapon 15157 | -3/Quarantine | Identified Core Stripper 15241 | -3/Quarantine | Lost 3 parts (3u) 15277 | -3/Quarantine | Found Alien Artifact 15277 | -3/Quarantine | Identified Terrabomb 15277 | -3/Quarantine | Used Terrabomb 15295 | -3/Quarantine | Found Terrabomb 15347 | -3/Quarantine | Found Alien Artifact 15347 | -3/Quarantine | Identified Hpw. Transdimensional Reconstructor 15347 | -3/Quarantine | Warped through subspace 15436 | -3/Quarantine | Destroyed by P-80 Master with Gamma Rifle Last Messages --------------- 15418_ Y-72 Warden misfires. 15418_ Particle Accelerator destroyed. 15418_ K-01 Serf collects debris. 15418_ EMDS Slug penetrates Y-72 Warden. 15419_ Y-72 Warden system terminally corrupted. 15419_ Adv. Heat Sink fried. 15419_ Quantum Rifle fried. 15420_ Acquired 99 matter. 15420_ Acquired 87 matter. 15421_ K-01 Serf collects debris. 15426_ Acquired Med. Treads. 15427_ Door malfunctions. 15427_ K-01 Serf collects debris. 15428_ Identified Gamma Rifle. 15430_ K-01 Serf collects debris. 15431_ Acquired Quantum Rifle. 15433_ System corrupted: Med. Treads rejected. 15433_ Gamma Rifle destroyed. 15433_ K-01 Serf collects debris. 15436_ Quantum Rifle destroyed. Map ----- +----------------------------------------------------+ | "+"""""" ????????????????????????????????????? | | " " ????????????????????????????????????? | | """""""""""???????????????????????????????????? | | " "?######????????????????????????????? | | " ?# [ #????????????????????????????? | | " """"### #????????????????????????????? | | " [!*+ [ #???????"""??????????????????? | | " """"" [! !#!| #???????"?"??????????????????? | | == " ?# =[%!=#=* #?????"""""??????????????????? | | [%="???# %%=[=*+*!! #?????"""""??????????????????? | | [[%#???# ############????????????????????????????? | | [#???# #???????????????????????????????????????? | | #???# #???????????????????????????????????????? | | #####+#####????##############?????????????????? | | #* #????# #?????????????????? | | %/! #????# #?????????????????? | | # !"" #????# #?????????????????? | | # """ """ ###### """"""" #?????????????????? | | # "" / ; p " #?????????????????? | | # T " " # ####pp "" """ #?????????????????? | | # " # #??# [ " " #?????????????????? | | # + #??# " " """ #?????????????????? | | ########### #??# #?????????????????? | | #?????????# #??# [! #?????????????????? | | #?????????# #??# [ !* #?????????????????? | | #?????????# #??# =k@[ #?????????????????? | | #?????????# ##########/######?????????????????? | | #?????????# = #?????????????????????? | | ########### #?????????????????????? | | #?????????????????????? | | #?????????????????????? | | ???????????????????? | | """ """ """ """ """ ???????????????????? | | ## """ """ """ """ """ ?????????"""?"""????? | | ?# """ """ """ """ "" ?????????"""?"""????? | | ?# ?????????"""?"""????? | | ## ! ???????????????????? | | ????????"""?"""????? | | ###+################# ######????????"""?"""????? | | % ! #?????????? ??????????????"""?"""????? | | " %"""= #?????????? ?????????????????????????? | | " """ #????????????#?????????????????????????? | | """% ###????????????????????????"?"?????????? | | " ""#????????????????????????"T"?????????? | | " %% ""#????????????????????????"""?????????? | | T"#????????????????????????????????????? | | ""#????????????????????????????????????? | | ! ""#????????????????????????????????????? | | ! ###????????????????????????????????????? | | = #??????????????????????????????????????? | +----------------------------------------------------+ Best States ------------- Heat Dissipation 104 Energy Generation 51 Energy Capacity 1670 Matter Stores 462 Matter Capacity 500 Sight Range 22 Robot Scan Range 30 Terrain Scan Range 20 Terrain Scan Density 210 ECM Strength 3 Cloak Strength 2 Power Amplification 30 Additional Mass Support 9 Armor Coverage 1200 Resistance: EM 75 Power Shielding 90 Propulsion Shielding 66 Weapon Shielding 100 Point Defense Rating 160 Phase Shifting 20 Evasion (%) 73 Targeting Accuracy 42 Melee Accuracy 10 Target Analysis 8 Core Analysis 10 Recoil Reduction 4 Particle Charging 30 Salvage Targeting 3 Offensive Hacking 24 Defensive Hacking 28 Item Schematics ----------------- VTOL Module | -9/Materials | Hacked Imp. Flight Unit | -9/Materials | Scanalyzed Hcp. Storage Unit | -9/Materials | Scanalyzed Adv. Terrain Scanner | -9/Materials | Scanalyzed Lgt. Armor Plating | -9/Materials | Scanalyzed Mic. Nuclear Core | -8/Materials | Scanalyzed Hcp. Matter Pod | -8/Materials | Scanalyzed Rocket Launcher | -8/Materials | Scanalyzed Combat Drone Bay | -7/Data Miner | Free Lgt. Regenerative Plating | -7/Data Miner | Free Cmb. Gravmag System | -7/Data Miner | Free Exp. Sensor Array | -7/Data Miner | Free Exp. Terrain Scan Processor | -7/Data Miner | Free Exp. Targeting Computer | -7/Data Miner | Free Exp. Transmission Jammer | -7/Data Miner | Free Exp. ECM Suite | -7/Data Miner | Free Mni. Smartbomb Launcher | -7/Data Miner | Free Kinetic Spear | -7/Data Miner | Free Imp. Hacking Suite | -6/Proximity Caves | Hacked Imp. Cesium-ion Thruster | -6/Factory | Hacked Adv. Hacking Suite | -6/Factory | Hacked Biomechanical Wings | -5/Proximity Caves | Hacked Mic. Fission Core | -5/Proximity Caves | Hacked Tri-rail Accelerator | -5/Factory | Z-intel Exp. Heat Sink | -5/Factory | Z-intel Enh. Force Rifle | -5/Factory | Z-intel Cld. Plasma Cannon | -5/Factory | Z-intel Cld. Plasma Rifle | -5/Factory | Z-intel Imp. Matter Compressor | -5/Factory | Z-intel Cld. Gravmag System | -5/Factory | Z-intel Gui. EMP Blaster | -5/Factory | Z-intel Shock Maul | -5/Factory | Z-intel Com. Ion Cannon | -5/Factory | Z-intel Hvy. Proton Cannon | -5/Factory | Z-intel Cld. Fission Core | -5/Factory | Z-intel Imp. Lightning Gun | -5/Factory | Z-intel Enh. Coil Gun | -5/Factory | Z-intel Prc. Rocket Launcher | -5/Factory | Z-intel Lgt. Neutrino Core | -5/Factory | Z-intel Gravity Neutralizing Apparatus | -5/Factory | Z-intel Exp. Cesium-ion Thruster | -5/Factory | Z-intel Cld. VTOL Module | -5/Factory | Z-intel Exp. Signal Interpreter | -5/Factory | Z-intel Plasma Sword | -5/Factory | Z-intel Cld. Cesium-ion Thruster | -5/Extension | Z-intel Enh. Flexi-carbon Leg | -5/Extension | Z-intel F-cell Engine | -5/Extension | Z-intel Imp. Thermal Defense Suite | -5/Extension | Z-intel Enh. Armored Leg | -5/Extension | Z-intel Prc. Grenade Launcher | -5/Extension | Z-intel Enh. Fission Core | -5/Extension | Z-intel Ionic Axe | -5/Extension | Z-intel Imp. Energy Well | -5/Extension | Z-intel Cld. Aerolev Unit | -5/Extension | Z-intel Prc. Assault Rifle | -5/Extension | Z-intel Hvy. Deuterium Engine | -5/Extension | Z-intel Assault Drone Bay | -4/Zhirov | Free Exp. Optical Array | -4/Zhirov | Free Imp. Arc Thrower | -4/Zhirov | Free Micro-nuke Launcher | -3/Quarantine | Z-intel Lrg. Storage Unit | -3/Quarantine | Z-intel Quantum Rifle | -3/Quarantine | Z-intel Plasma Cutter | -3/Quarantine | Z-intel Adv. Component Analysis Suite | -3/Quarantine | Z-intel Nuclear Pulse Array | -3/Quarantine | Z-intel Adv. Heavy Treads | -3/Quarantine | Z-intel Centrium Wheel | -3/Quarantine | Z-intel Adv. Shield Generator | -3/Quarantine | Z-intel Imp. Heavy Siege Treads | -3/Quarantine | Z-intel Adv. Cryofiber Web | -3/Quarantine | Z-intel Adv. Weapon Cycler | -3/Quarantine | Z-intel Adv. Recalibrator | -3/Quarantine | Z-intel Powered Armor | -3/Quarantine | Z-intel Med. Storage Unit | -3/Quarantine | Z-intel Adv. Terrain Scan Processor | -3/Quarantine | Z-intel Imp. Force Field | -3/Quarantine | Z-intel Myomer Leg | -3/Quarantine | Z-intel Actuator Array | -3/Quarantine | Z-intel Adv. Particle Charger | -3/Quarantine | Z-intel HERF Cannon | -3/Quarantine | Z-intel Com. Battery | -3/Quarantine | Z-intel Lrn. Sensor Array | -3/Quarantine | Z-intel Arm. Medium Treads | -3/Quarantine | Z-intel Impulse Thruster | -3/Quarantine | Z-intel Imp. Linear Gravjet | -3/Quarantine | Z-intel Imp. Core Analyzer | -3/Quarantine | Z-intel Imp. System Shield | -3/Quarantine | Z-intel Imp. Overload Regulator | -3/Quarantine | Z-intel Robot Schematics ------------------ S-27 Virus | -7/Data Miner | Free G-50 Soldier | -7/Data Miner | Free X-72 Disruptor | -7/Data Miner | Free P-70 Sage | -7/Data Miner | Free I-36 Angel | -7/Data Miner | Free I-47 Archangel | -7/Data Miner | Free R-10 Processor | -5/Factory | Z-intel K-01 Serf | -5/Factory | Z-intel D-63 Destroyer | -5/Factory | Z-intel B-60 Warrior | -5/Factory | Z-intel R-06 Scavenger | -5/Hub_04(d) | Z-intel H-66 Slayer | -5/Hub_04(d) | Z-intel B-48 Gladiator | -5/Hub_04(d) | Z-intel Fabricated ------------ Imp. Flight Unit | x1 | -7/Factory Lgt. Armor Plating | x2 | -7/Factory Imp. Hacking Suite | x1 | -6/Factory Imp. Hacking Suite | x1 | -6/Factory Exp. Sensor Array | x1 | -6/Factory Cmb. Gravmag System | x2 | -5/Factory D-63 Destroyer | x1 | -4/Factory Alien Tech Used ----------------- Dimensional Node Initializer Integrated Dissipator Transdimensional Reconstructor Phase Redirector Subatomic Replicator Core Stripper Terrabomb High-powered Transdimensional Reconstructor Achievements -------------- False Reunion Freeware Friend Of Zion Perfect Aim Sunderer Challenges ------------ None Game ------ Seed BeamDisposableStorage Manual? 0 Play Time 05:34:55 Cumulative 145.1 hours Start 2020.09.29 @ 13:37:09 End 2020.09.29 @ 19:41:47 Sessions 1 Manual Loads 0 Difficulty Rogue Special Mode None Game No. 72 Rogue 72 Adventurer 0 Explorer 0 Win Type - Total 1 Types 1/0/0/0/0/0/0/0/0 Lore% 43 Gallery% 73 Achievement% 55 Wizard Run 0 Options --------- ASCII 0 Keyboard 0 Movement Numpad Keybinds 0 Fullscreen 1 Font 18/SmallcapsGlow Map View 76x50 Tactical HUD 1 Map Filters NONE Filters NONE Steam 1 RUN: 477bc579-b0bb-40e5-83f5-6694ce6ddca9